{"text_format":"3","workbook":"xlsx","n_sheets":4,"sheets":["Obrazac ponude","Grafikon podataka","Raščlamba troškova","Sažetak troškova ponude"],"not_rendered":{"charts":1,"images":2,"defined_names":11},"read":"whole","date_system":"1900"}

{"sheet":"Obrazac ponude","index":0,"n_rows":21,"n_cols":6,"rows_kept":21,"merged":[[0,1,0,4],[1,1,1,2],[7,1,8,1],[7,2,8,2],[10,1,10,5],[12,1,12,5],[14,1,14,5],[15,1,15,2],[15,4,15,5],[16,1,16,2],[16,4,16,5],[18,1,18,5],[19,1,19,2],[19,4,19,5],[20,1,20,2],[20,4,20,5]]}
[null,"Obrazac građevinskih ponuda"]
[null,"Podaci o vlasniku",null,null,"Informacije o izvođaču"]
[null,"Ime","U ovu ćeliju unesite ime vlasnika",null,"Tvrtka","U ovu ćeliju unesite naziv tvrtke izvođača"]
[null,"Adresa","U ovu ćeliju unesite adresu vlasnika",null,"Ime","U ovu ćeliju unesite ime i prezime izvođača"]
[null,"Grad, županija, poštanski broj","U ovu ćeliju unesite grad, županiju i poštanski broj.",null,"Adresa","U ovu ćeliju unesite adresu izvođača"]
[null,"Telefon","U ovu ćeliju unesite telefonski broj vlasnika",null,"Grad, županija, poštanski broj","U ovu ćeliju unesite grad, županiju i poštanski broj izvođača"]
[null,"Email","U ovu ćeliju unesite Email adresu vlasnika",null,"Telefon","U ovu ćeliju unesite telefonski broj izvođača"]
[null,"Naziv projekta","U ovu ćeliju unesite naziv projekta",null,"Email","U ovu ćeliju unesite Email adresu izvođača "]
[{"$nulls":4},"Datum završetka","U ovu ćeliju unesite datum završetka"]
[null,"Opseg poslova"]
[null,"Ovdje dolazi opseg poslova na projektu. Upišite sve specifikacije koje želite. \n\nOgledni tekst: Ovo će biti model projekta izgradnje velikog niza stepenica. Za konstrukciju okvira koristit ćemo jedino 2x4 i 2x8 daske i nosače greda. Stepenice će se rezati od materijala 2x4. Neće se koristiti vijci manji od 2 inča.  Svaki čavao neće biti manji od 10 penija (3 inča). Nosivost dizajnirane težine treba iznositi najmanje 500 funti po stepenici. Stepenice će biti na istoj razini kao i unutar kuće. Pomoćna stepenica bit će pričvršćena za kuću. Izvođač će se pobrinuti za čišćenje."]
[null,"Nije obuhvaćeno"]
[null,"Ovdje su detalji koji nisu uključeni u projekt. Upišite sve što nije obuhvaćeno ovom ponudom. \n\nOgledni tekst: Rukohvati se neće ugraditi. Temelj će pripremiti vlasnik. Vlasnik će obojati stepenište."]
[null,"Prijedlog tvrtke"]
[null,"Ovdje je ponuda tvrtke. Upišite pregled predloženog posla uključujući tko predlaže posao, očekivani datum završetka i iznos prijedloga.\n\nOgledni tekst: Mi, Naziv tvrtke, predlažemo gore navedeni opseg posla, da bude dovršen do datuma dovršetka za iznos ukupnog iznosa."]
[]
[null,"Podnio (predstavnik tvrtke)",null,null,"Datum"]
[null,"Prihvaćanje vlasnika"]
[null,"Ovdje dolazi prihvaćanje vlasnika. Upišite ime vlasnika u potvrdnoj izjavi koja sadrži datum završetka i ukupni iznos naveden u prijedlogu tvrtke. \n\nOgledni tekst: Ja, ime vlasnika, prihvaćam prethodno navedeni opseg posla, predložen da bude završen do datuma dovršetka za iznos ukupnog iznosa."]
[]
[null,"Podnio (vlasnik kuće ili ovlašteni predstavnik)",null,null,"Datum"]

{"sheet":"Grafikon podataka","index":1,"n_rows":7,"n_cols":3,"rows_kept":7,"hidden":true}
[]
[null,null,"Zbroj"]
[null,{"$f":"INDEX(Stavke_ponude[#Data],MATCH(1,Stavke_ponude[Rangirani troškovi],0),2)","v":"Naknade za fizički rad"},{"$f":"INDEX(Stavke_ponude[#Data],MATCH(1,Stavke_ponude[Rangirani troškovi],0),4)","v":200}]
[null,{"$f":"INDEX(Stavke_ponude[#Data],MATCH(2,Stavke_ponude[Rangirani troškovi],0),2)","v":"2x4x10 daska"},{"$f":"INDEX(Stavke_ponude[#Data],MATCH(2,Stavke_ponude[Rangirani troškovi],0),4)","v":99.39999999999999}]
[null,{"$f":"INDEX(Stavke_ponude[#Data],MATCH(3,Stavke_ponude[Rangirani troškovi],0),2)","v":"Podupirači greda"},{"$f":"INDEX(Stavke_ponude[#Data],MATCH(3,Stavke_ponude[Rangirani troškovi],0),4)","v":74.7}]
[null,{"$f":"INDEX(Stavke_ponude[#Data],MATCH(4,Stavke_ponude[Rangirani troškovi],0),2)","v":"2x8x10 daska"},{"$f":"INDEX(Stavke_ponude[#Data],MATCH(4,Stavke_ponude[Rangirani troškovi],0),4)","v":33.75}]
[null,{"$f":"INDEX(Stavke_ponude[#Data],MATCH(5,Stavke_ponude[Rangirani troškovi],0),2)","v":"Par rukavica, kožnih"},{"$f":"INDEX(Stavke_ponude[#Data],MATCH(5,Stavke_ponude[Rangirani troškovi],0),4)","v":15.5}]

{"sheet":"Raščlamba troškova","index":2,"n_rows":14,"n_cols":6,"rows_kept":14,"merged":[[0,1,0,4],[1,1,1,4]]}
[null,"Raščlamba troškova",{"$nulls":3}," "]
[null,"Popis materijala i troškova"]
[null,"Količina","Opis","Trošak","Zbroj","Rangirani troškovi"]
[null,5,"2x8x10 daska",{"v":6.75,"d":"6.75 kn"},{"$f":"IFERROR(Stavke_ponude[[#This Row],[Trošak]]*Stavke_ponude[[#This Row],[Količina]], \"\")","v":{"v":33.75,"d":"33.75 kn"}},{"$f":"_xlfn.RANK.EQ(Stavke_ponude[[#This Row],[Zbroj]],Stavke_ponude[Zbroj])","v":4}]
[null,20,"2x4x10 daska",{"v":4.97,"d":"4.97 kn"},{"$f":"IFERROR(Stavke_ponude[[#This Row],[Trošak]]*Stavke_ponude[[#This Row],[Količina]], \"\")","v":{"v":99.39999999999999,"d":"99.40 kn"}},{"$f":"_xlfn.RANK.EQ(Stavke_ponude[[#This Row],[Zbroj]],Stavke_ponude[Zbroj])","v":2}]
[null,30,"Podupirači greda",{"v":2.49,"d":"2.49 kn"},{"$f":"IFERROR(Stavke_ponude[[#This Row],[Trošak]]*Stavke_ponude[[#This Row],[Količina]], \"\")","v":{"v":74.7,"d":"74.70 kn"}},{"$f":"_xlfn.RANK.EQ(Stavke_ponude[[#This Row],[Zbroj]],Stavke_ponude[Zbroj])","v":3}]
[null,2,"Kutija vijaka, 2 inča",{"v":6.67,"d":"6.67 kn"},{"$f":"IFERROR(Stavke_ponude[[#This Row],[Trošak]]*Stavke_ponude[[#This Row],[Količina]], \"\")","v":{"v":13.34,"d":"13.34 kn"}},{"$f":"_xlfn.RANK.EQ(Stavke_ponude[[#This Row],[Zbroj]],Stavke_ponude[Zbroj])","v":6}]
[null,2,"Kutija sa čavlima, 10 penija (3 inča)",{"v":3.25,"d":"3.25 kn"},{"$f":"IFERROR(Stavke_ponude[[#This Row],[Trošak]]*Stavke_ponude[[#This Row],[Količina]], \"\")","v":{"v":6.5,"d":"6.50 kn"}},{"$f":"_xlfn.RANK.EQ(Stavke_ponude[[#This Row],[Zbroj]],Stavke_ponude[Zbroj])","v":7}]
[null,2,"Par rukavica, kožnih",{"v":7.75,"d":"7.75 kn"},{"$f":"IFERROR(Stavke_ponude[[#This Row],[Trošak]]*Stavke_ponude[[#This Row],[Količina]], \"\")","v":{"v":15.5,"d":"15.50 kn"}},{"$f":"_xlfn.RANK.EQ(Stavke_ponude[[#This Row],[Zbroj]],Stavke_ponude[Zbroj])","v":5}]
[null,2,"Naknade za fizički rad",{"v":100,"d":"100.00 kn"},{"$f":"IFERROR(Stavke_ponude[[#This Row],[Trošak]]*Stavke_ponude[[#This Row],[Količina]], \"\")","v":{"v":200,"d":"200.00 kn"}},{"$f":"_xlfn.RANK.EQ(Stavke_ponude[[#This Row],[Zbroj]],Stavke_ponude[Zbroj])","v":1}]
[4,null,null,"Međuzbroj",{"$f":"SUBTOTAL(109,Stavke_ponude[Zbroj])","v":{"v":443.18999999999994,"d":"443.19 kn"}}]
[5,null,null,"Porezna stopa",{"v":0.075,"d":"7.50%"}]
[{"$nulls":3},"Porez",{"$f":"IFERROR(Porezna_stopa*Stavke_ponude[[#Totals],[Zbroj]], \"\")","v":{"v":33.23924999999999,"d":"33.24 kn"}}]
[{"$nulls":3},"Sveukupno",{"$f":"IFERROR(Porez+Stavke_ponude[[#Totals],[Zbroj]], \"\")","v":{"v":476.4292499999999,"d":"476.43 kn"}}]

{"sheet":"Sažetak troškova ponude","index":3,"n_rows":3,"n_cols":4,"rows_kept":3}
[null,"Sažetak troškova ponude"]
[null,"Raščlamba materijala i troškova",null,"Bilješke"]
[null,"Kružni grafikon prikazuje 5 najskupljih troškova po materijalu. Podaci se temelje na tablici Stavke ponude u radnom listu raščlambe troškova",null,"Unesite bilješke u ovu ćeliju."]